[Event "RUS-chT Men Rapid 2019"]
[Site "Sochi"]
[Date "2019.10.18"]
[Round "1.1"]
[White "Tsydypov, Zhamsaran"]
[Black "Tekeyev, Zaur"]
[Result "1-0"]
[ECO "B32"]
[WhiteElo "2553"]
[BlackElo "2384"]
[Annotator "ChessBase"]
[PlyCount "45"]
[EventDate "2019.10.18"]
[EventType "swiss"]
[EventCountry "RUS"]
[SourceTitle "playchess.com"]
[Source "ChessBase"]
[SourceQuality "1"]
[TimeControl "900+10"]

1. e4 {[%emt 0:00:00]} c5 {[%emt 0:00:00]} 2. Nf3 {[%emt 0:00:00]} Nc6 {[%emt 0:00:00]} 3. d4 {[%emt 0:00:00]} cxd4 {[%emt 0:00:00]} 4. Nxd4 {[%emt 0:00:00]} e5 {[%emt 0:00:00]} 5. Nb5 {[%emt 0:00:01]} d6 {[%emt 0:00:00]} 6. N1c3 {[%emt 0:00:09]} a6 {[%emt 0:00:00]} 7. Na3 {[%emt 0:00:01]} Be7 {[%emt 0:00:01]} 8. Nc4 {[%emt 0:00:20]} b5 {[%emt 0:00:01]} 9. Ne3 {[%emt 0:00:02]} Nf6 {[%emt 0:00:02]} 10. g3 {[%emt 0:00:01]} O-O {[%emt 0:00:03]} 11. Bg2 {[%emt 0:00:01]} b4 {[%emt 0:00:17]} 12. Ncd5 {[%emt 0:00:02]} Nxd5 {[%emt 0:00:02]} 13. Nxd5 {[%emt 0:00:12]} Bg5 {[%emt 0:00:08]} 14. Bxg5 {[%emt 0:00:29]} Qxg5 {[%emt 0:00:02]} 15. a3 {[%emt 0:00:01]} Rb8 {[%emt 0:01:08]} 16. O-O {[%emt 0:00:15]} a5 {[%emt 0:09:05]} 17. axb4 {[%emt 0:00:12]} Nxb4 {[%emt 0:01:54]} 18. Nxb4 {[%emt 0:02:28]} Rxb4 {[%emt 0:00:04]} 19. Qxd6 {[%emt 0:00:07]} Rd8 {[%emt 0:02:03]} 20. Qc5 {[%emt 0:00:05]} Rxb2 {[%emt 0:00:17]} 21. Rxa5 {[%emt 0:00:06]} Qd2 {[%emt 0:00:36]} 22. Qxe5 {[%emt 0:00:14]} Rxc2 {[%emt 0:00:07]} 23. Rd5 {[%emt 0:00:08]} 1-0

[Event "RUS-chT Men Rapid 2019"]
[Site "Sochi"]
[Date "2019.10.18"]
[Round "1.3"]
[White "Moiseenko, Vadim"]
[Black "Nechaev, Oleg"]
[Result "1-0"]
[ECO "B24"]
[WhiteElo "2532"]
[BlackElo "2371"]
[Annotator "ChessBase"]
[PlyCount "101"]
[EventDate "2019.10.18"]
[EventType "swiss"]
[EventCountry "RUS"]
[SourceTitle "playchess.com"]
[Source "ChessBase"]
[SourceQuality "1"]
[TimeControl "900+10"]

1. e4 {[%emt 0:00:00]} c5 {[%emt 0:00:00]} 2. Nc3 {[%emt 0:00:00]} Nc6 {[%emt 0:00:00]} 3. Bb5 {[%emt 0:00:00]} g6 {[%emt 0:00:13]} 4. Bxc6 {[%emt 0:00:10]} dxc6 {[%emt 0:00:02]} 5. d3 {[%emt 0:00:12]} Bg7 {[%emt 0:00:06]} 6. f4 {[%emt 0:00:06]} Nf6 {[%emt 0:00:08]} 7. Nf3 {[%emt 0:00:02]} O-O {[%emt 0:00:07]} 8. O-O {[%emt 0:00:05]} b6 {[%emt 0:00:10]} 9. a4 {[%emt 0:00:19]} a5 {[%emt 0:00:08]} 10. h3 {[%emt 0:00:24]} Ne8 {[%emt 0:00:18]} 11. Be3 {[%emt 0:00:56]} Nc7 {[%emt 0:00:06]} 12. Rb1 {[%emt 0:00:45]} Ne6 {[%emt 0:01:55]} 13. Qd2 {[%emt 0:03:57]} Nd4 {[%emt 0:00:23]} 14. Ne2 {[%emt 0:00:49]} Nxf3+ {[%emt 0:00:53]} 15. Rxf3 {[%emt 0:00:02]} f5 {[%emt 0:00:15]} 16. exf5 {[%emt 0:00:50]} Bxf5 {[%emt 0:00:22]} 17. b3 {[%emt 0:00:04]} Qd5 {[%emt 0:00:45]} 18. Nc3 {[%emt 0:00:56]} Qd7 {[%emt 0:00:25]} 19. Rbf1 {[%emt 0:00:12]} h5 {[%emt 0:00:34]} 20. Bf2 {[%emt 0:01:11]} e5 {[%emt 0:00:30]} 21. fxe5 {[%emt 0:00:04]} Bxe5 {[%emt 0:00:04]} 22. Nd1 {[%emt 0:00:30]} Bg7 {[%emt 0:01:28]} 23. Bg3 {[%emt 0:00:29]} Kh7 {[%emt 0:01:12]} 24. Kh2 {[%emt 0:00:35]} Be6 {[%emt 0:00:10]} 25. Ne3 {[%emt 0:00:30]} Rxf3 {[%emt 0:00:11]} 26. Rxf3 {[%emt 0:00:01]} Rf8 {[%emt 0:00:07]} 27. Rxf8 {[%emt 0:00:30]} Bxf8 {[%emt 0:00:02]} 28. Be5 {[%emt 0:00:06]} Bh6 {[%emt 0:00:17]} 29. Qf2 {[%emt 0:00:06]} Bg7 {[%emt 0:00:41]} 30. Qf4 {[%emt 0:00:19]} Bh6 {[%emt 0:01:02]} 31. Qf3 {[%emt 0:01:28]} Bg7 {[%emt 0:00:08]} 32. Bxg7 {[%emt 0:00:07]} Kxg7 {[%emt 0:00:09]} 33. Qf4 {[%emt 0:00:02]} Qd4 {[%emt 0:00:38]} 34. Kg3 {[%emt 0:00:48]} Qxf4+ {[%emt 0:00:20]} 35. Kxf4 {[%emt 0:00:01]} Kf6 {[%emt 0:00:01]} 36. h4 {[%emt 0:00:09]} b5 {[%emt 0:00:11]} 37. c4 {[%emt 0:00:49]} b4 {[%emt 0:01:57]} 38. Nd1 {[%emt 0:00:13]} Bf5 {[%emt 0:00:20]} 39. Nf2 {[%emt 0:00:01]} Ke6 {[%emt 0:00:20]} 40. Ne4 {[%emt 0:00:37]} Bxe4 {[%emt 0:03:25]} 41. dxe4 {[%emt 0:00:01]} Kf6 {[%emt 0:00:05]} 42. e5+ {[%emt 0:00:02]} Ke6 {[%emt 0:00:02]} 43. g3 {[%emt 0:00:02]} Ke7 {[%emt 0:00:16]} 44. g4 {[%emt 0:00:04]} Ke6 {[%emt 0:00:14]} 45. gxh5 {[%emt 0:00:04]} gxh5 {[%emt 0:00:02]} 46. Ke4 {[%emt 0:00:01]} Ke7 {[%emt 0:00:08]} 47. Kf5 {[%emt 0:00:02]} Kf7 {[%emt 0:00:02]} 48. e6+ {[%emt 0:00:18]} Ke8 {[%emt 0:00:18]} 49. Kf4 {[%emt 0:00:04]} Kf8 {[%emt 0:00:05]} 50. Ke4 {[%emt 0:00:02]} Ke8 {[%emt 0:00:04]} 51. Kf5 {[%emt 0:00:01]} 1-0

[Event "RUS-chT Men Rapid 2019"]
[Site "Sochi"]
[Date "2019.10.18"]
[Round "1.4"]
[White "Rozhko, Dmitry"]
[Black "Rozum, Ivan"]
[Result "0-1"]
[ECO "A46"]
[WhiteElo "2305"]
[BlackElo "2599"]
[Annotator "ChessBase"]
[PlyCount "88"]
[EventDate "2019.10.18"]
[EventType "swiss"]
[EventCountry "RUS"]
[SourceTitle "playchess.com"]
[Source "ChessBase"]
[SourceQuality "1"]
[TimeControl "900+10"]

1. d4 {[%emt 0:00:00]} Nf6 {[%emt 0:00:00]} 2. Nf3 {[%emt 0:00:00]} e6 {[%emt 0:00:00]} 3. g3 {[%emt 0:00:00]} b5 {[%emt 0:00:07]} 4. Bg2 {[%emt 0:00:01]} Bb7 {[%emt 0:00:01]} 5. O-O {[%emt 0:00:01]} c5 {[%emt 0:00:06]} 6. a4 {[%emt 0:00:04]} b4 {[%emt 0:00:05]} 7. c3 {[%emt 0:00:08]} Na6 {[%emt 0:00:37]} 8. Nbd2 {[%emt 0:00:26]} Be7 {[%emt 0:00:12]} 9. dxc5 {[%emt 0:00:58]} bxc3 {[%emt 0:00:09]} 10. bxc3 {[%emt 0:00:02]} Nxc5 {[%emt 0:00:04]} 11. Nb3 {[%emt 0:00:27]} Nce4 {[%emt 0:00:29]} 12. c4 {[%emt 0:00:20]} Rc8 {[%emt 0:01:19]} 13. Qd4 {[%emt 0:00:30]} Nc5 {[%emt 0:00:40]} 14. Nxc5 {[%emt 0:00:22]} Bxc5 {[%emt 0:00:03]} 15. Qh4 {[%emt 0:00:56]} Be7 {[%emt 0:00:54]} 16. Qd4 {[%emt 0:00:54]} Qa5 {[%emt 0:00:02]} 17. Bd2 {[%emt 0:00:38]} Qa6 {[%emt 0:00:12]} 18. Rfc1 {[%emt 0:01:00]} O-O {[%emt 0:00:05]} 19. Ne5 {[%emt 0:00:33]} Bxg2 {[%emt 0:00:50]} 20. Kxg2 {[%emt 0:00:01]} Rc7 {[%emt 0:00:26]} 21. Nd3 {[%emt 0:01:00]} d6 {[%emt 0:00:33]} 22. e4 {[%emt 0:03:21]} e5 {[%emt 0:00:23]} 23. Qe3 {[%emt 0:00:50]} Rxc4 {[%emt 0:00:01]} 24. Nb4 {[%emt 0:00:27]} Rxc1 {[%emt 0:01:03]} 25. Nxa6 {[%emt 0:00:23]} Rxa1 {[%emt 0:00:01]} 26. Qxa7 {[%emt 0:00:03]} Rxa4 {[%emt 0:00:17]} 27. Qb7 {[%emt 0:00:38]} Nxe4 {[%emt 0:00:45]} 28. Be3 {[%emt 0:00:08]} Nf6 {[%emt 0:00:43]} 29. Nb4 {[%emt 0:00:20]} Re8 {[%emt 0:01:13]} 30. Nd5 {[%emt 0:00:21]} Nxd5 {[%emt 0:00:07]} 31. Qxd5 {[%emt 0:00:01]} Rea8 {[%emt 0:01:20]} 32. h4 {[%emt 0:00:04]} R4a5 {[%emt 0:00:04]} 33. Qe4 {[%emt 0:00:16]} Bf6 {[%emt 0:00:39]} 34. h5 {[%emt 0:00:54]} d5 {[%emt 0:00:33]} 35. Qg4 {[%emt 0:00:02]} d4 {[%emt 0:00:10]} 36. Bh6 {[%emt 0:00:10]} Kh8 {[%emt 0:00:20]} 37. Bd2 {[%emt 0:00:24]} Ra2 {[%emt 0:00:02]} 38. Qe4 {[%emt 0:00:58]} Rd8 {[%emt 0:00:23]} 39. Qe1 {[%emt 0:00:29]} h6 {[%emt 0:00:46]} 40. Ba5 {[%emt 0:00:29]} Rd5 {[%emt 0:00:32]} 41. Bb4 {[%emt 0:00:21]} d3 {[%emt 0:00:18]} 42. Qe4 {[%emt 0:00:11]} Rd8 {[%emt 0:00:17]} 43. Qc4 {[%emt 0:00:19]} Ra4 {[%emt 0:00:08]} 44. Qb5 {[%emt 0:00:08]} Rxb4 {[%emt 0:00:05]} 0-1

[Event "RUS-chT Men Rapid 2019"]
[Site "Sochi"]
[Date "2019.10.18"]
[Round "1.6"]
[White "Potkin, Vladimir"]
[Black "Jary, Sergey"]
[Result "1/2-1/2"]
[ECO "A11"]
[WhiteElo "2583"]
[BlackElo "2275"]
[Annotator "ChessBase"]
[PlyCount "57"]
[EventDate "2019.10.18"]
[EventType "swiss"]
[EventCountry "RUS"]
[SourceTitle "playchess.com"]
[Source "ChessBase"]
[SourceQuality "1"]
[TimeControl "900+10"]

1. c4 {[%emt 0:00:00]} c6 {[%emt 0:00:00]} 2. Nf3 {[%emt 0:00:00]} Nf6 {[%emt 0:00:23]} 3. Nc3 {[%emt 0:00:00]} d5 {[%emt 0:00:15]} 4. e3 {[%emt 0:00:00]} g6 {[%emt 0:00:21]} 5. d4 {[%emt 0:00:03]} Bg7 {[%emt 0:00:03]} 6. Be2 {[%emt 0:00:02]} O-O {[%emt 0:00:45]} 7. O-O {[%emt 0:00:03]} Qb6 {[%emt 0:01:15]} 8. h3 {[%emt 0:00:22]} Bf5 {[%emt 0:00:53]} 9. Bd2 {[%emt 0:00:17]} Nbd7 {[%emt 0:00:54]} 10. cxd5 {[%emt 0:02:43]} Nxd5 {[%emt 0:01:52]} 11. Nxd5 {[%emt 0:03:27]} cxd5 {[%emt 0:00:08]} 12. Qb3 {[%emt 0:00:03]} Qxb3 {[%emt 0:00:21]} 13. axb3 {[%emt 0:00:01]} Rfc8 {[%emt 0:00:14]} 14. Rfc1 {[%emt 0:00:04]} a6 {[%emt 0:02:09]} 15. g4 {[%emt 0:02:28]} Be4 {[%emt 0:01:01]} 16. Bb4 {[%emt 0:00:20]} Bxf3 {[%emt 0:01:17]} 17. Bxf3 {[%emt 0:00:03]} e6 {[%emt 0:00:01]} 18. Kf1 {[%emt 0:01:36]} Bf8 {[%emt 0:00:08]} 19. Bd2 {[%emt 0:00:03]} Bd6 {[%emt 0:00:24]} 20. e4 {[%emt 0:00:12]} Nb6 {[%emt 0:00:09]} 21. e5 {[%emt 0:00:19]} Be7 {[%emt 0:00:14]} 22. Be2 {[%emt 0:00:57]} Rxc1+ {[%emt 0:00:21]} 23. Rxc1 {[%emt 0:00:03]} Rc8 {[%emt 0:00:01]} 24. Rb1 {[%emt 0:00:50]} f6 {[%emt 0:00:39]} 25. f4 {[%emt 0:00:16]} Kf7 {[%emt 0:00:09]} 26. Bd3 {[%emt 0:00:08]} f5 {[%emt 0:00:10]} 27. Ke2 {[%emt 0:00:03]} Nd7 {[%emt 0:00:32]} 28. b4 {[%emt 0:00:19]} b5 {[%emt 0:00:06]} 29. Ra1 {[%emt 0:00:58]} 1/2-1/2

[Event "RUS-chT Men Rapid 2019"]
[Site "Sochi"]
[Date "2019.10.18"]
[Round "1.10"]
[White "Truskavetsky, Alexandr"]
[Black "Yuffa, Daniil"]
[Result "0-1"]
[ECO "A62"]
[WhiteElo "2398"]
[BlackElo "2577"]
[Annotator "ChessBase"]
[PlyCount "72"]
[EventDate "2019.10.18"]
[EventType "swiss"]
[EventCountry "RUS"]
[SourceTitle "playchess.com"]
[Source "ChessBase"]
[SourceQuality "1"]
[TimeControl "900+10"]

1. d4 {[%emt 0:00:00]} Nf6 {[%emt 0:00:00]} 2. c4 {[%emt 0:00:00]} e6 {[%emt 0:00:00]} 3. g3 {[%emt 0:00:05]} c5 {[%emt 0:00:00]} 4. d5 {[%emt 0:00:05]} exd5 {[%emt 0:00:00]} 5. cxd5 {[%emt 0:00:02]} d6 {[%emt 0:00:01]} 6. Nc3 {[%emt 0:00:07]} g6 {[%emt 0:00:02]} 7. Bg2 {[%emt 0:00:04]} Bg7 {[%emt 0:00:02]} 8. Nf3 {[%emt 0:00:04]} O-O {[%emt 0:00:02]} 9. O-O {[%emt 0:00:03]} Re8 {[%emt 0:00:02]} 10. Bf4 {[%emt 0:00:16]} Bf5 {[%emt 0:00:02]} 11. Nd2 {[%emt 0:03:34]} Nh5 {[%emt 0:00:04]} 12. Be3 {[%emt 0:00:06]} Nd7 {[%emt 0:00:23]} 13. Nc4 {[%emt 0:00:26]} Ne5 {[%emt 0:02:49]} 14. Nxe5 {[%emt 0:00:02]} Rxe5 {[%emt 0:00:46]} 15. Qd2 {[%emt 0:00:17]} Rb8 {[%emt 0:00:53]} 16. a4 {[%emt 0:00:38]} a6 {[%emt 0:00:01]} 17. Bg5 {[%emt 0:01:21]} Qf8 {[%emt 0:00:50]} 18. e4 {[%emt 0:02:24]} Bd7 {[%emt 0:00:04]} 19. a5 {[%emt 0:00:54]} b5 {[%emt 0:00:15]} 20. axb6 {[%emt 0:00:07]} Rxb6 {[%emt 0:00:03]} 21. Be3 {[%emt 0:00:15]} f5 {[%emt 0:02:46]} 22. exf5 {[%emt 0:00:10]} Bxf5 {[%emt 0:00:49]} 23. Ra4 {[%emt 0:01:49]} Qb8 {[%emt 0:00:25]} 24. Ra2 {[%emt 0:00:28]} Re8 {[%emt 0:01:37]} 25. Rfa1 {[%emt 0:00:15]} Nf6 {[%emt 0:01:05]} 26. Bf4 {[%emt 0:01:45]} Ng4 {[%emt 0:02:40]} 27. Bf3 {[%emt 0:02:25]} Bd4 {[%emt 0:00:46]} 28. Bxg4 {[%emt 0:00:02]} Bxg4 {[%emt 0:00:02]} 29. Be3 {[%emt 0:00:10]} Be5 {[%emt 0:01:05]} 30. Bf4 {[%emt 0:00:32]} Bd4 {[%emt 0:00:16]} 31. Be3 {[%emt 0:00:01]} Bg7 {[%emt 0:00:13]} 32. Bh6 {[%emt 0:00:15]} Bh8 {[%emt 0:00:52]} 33. Qg5 {[%emt 0:00:55]} Qc8 {[%emt 0:00:19]} 34. Qd2 {[%emt 0:00:13]} Bd4 {[%emt 0:00:32]} 35. Ra4 {[%emt 0:00:02]} Bf3 {[%emt 0:00:09]} 36. Rxd4 {[%emt 0:00:09]} Qh3 {[%emt 0:00:04]} 0-1

[Event "RUS-chT Men Rapid 2019"]
[Site "Sochi"]
[Date "2019.10.18"]
[Round "1.13"]
[White "Kardashevskiy, Evgeny"]
[Black "Goryachkina, Aleksandra"]
[Result "1/2-1/2"]
[ECO "D37"]
[WhiteElo "2428"]
[BlackElo "2575"]
[Annotator "ChessBase"]
[PlyCount "53"]
[EventDate "2019.10.18"]
[EventType "swiss"]
[EventCountry "RUS"]
[SourceTitle "playchess.com"]
[Source "ChessBase"]
[SourceQuality "1"]
[TimeControl "900+10"]

1. d4 {[%emt 0:00:00]} Nf6 {[%emt 0:00:00]} 2. Nf3 {[%emt 0:00:00]} d5 {[%emt 0:00:00]} 3. c4 {[%emt 0:00:00]} e6 {[%emt 0:00:00]} 4. Nc3 {[%emt 0:00:03]} a6 {[%emt 0:00:02]} 5. cxd5 {[%emt 0:00:16]} exd5 {[%emt 0:00:03]} 6. Qb3 {[%emt 0:00:07]} c5 {[%emt 0:00:23]} 7. Bg5 {[%emt 0:01:08]} c4 {[%emt 0:00:19]} 8. Qc2 {[%emt 0:00:06]} Bb4 {[%emt 0:00:24]} 9. e4 {[%emt 0:01:53]} dxe4 {[%emt 0:00:46]} 10. Bxf6 {[%emt 0:00:10]} Qxf6 {[%emt 0:00:03]} 11. Qxe4+ {[%emt 0:00:05]} Qe6 {[%emt 0:00:58]} 12. Qxe6+ {[%emt 0:00:36]} Bxe6 {[%emt 0:00:04]} 13. Ng5 {[%emt 0:01:18]} Bd5 {[%emt 0:01:42]} 14. O-O-O {[%emt 0:00:16]} Bxc3 {[%emt 0:00:50]} 15. bxc3 {[%emt 0:00:02]} O-O {[%emt 0:00:45]} 16. Nh3 {[%emt 0:00:40]} b5 {[%emt 0:00:23]} 17. Nf4 {[%emt 0:00:08]} Bb7 {[%emt 0:00:05]} 18. Be2 {[%emt 0:00:26]} Nd7 {[%emt 0:00:06]} 19. Bf3 {[%emt 0:00:49]} Bxf3 {[%emt 0:01:17]} 20. gxf3 {[%emt 0:00:02]} Rfe8 {[%emt 0:00:29]} 21. Rde1 {[%emt 0:00:18]} Kf8 {[%emt 0:00:08]} 22. Nd5 {[%emt 0:00:17]} Rxe1+ {[%emt 0:03:05]} 23. Rxe1 {[%emt 0:00:03]} Nf6 {[%emt 0:00:09]} 24. Nxf6 {[%emt 0:00:34]} gxf6 {[%emt 0:00:00]} 25. Re4 {[%emt 0:00:35]} Rd8 {[%emt 0:01:25]} 26. Rf4 {[%emt 0:00:34]} Kg7 {[%emt 0:00:03]} 27. Rg4+ {[%emt 0:00:10]} 1/2-1/2

[Event "RUS-chT Men Rapid 2019"]
[Site "Sochi"]
[Date "2019.10.18"]
[Round "1.14"]
[White "Pridorozhni, Aleksei"]
[Black "Suleymenov, Alisher"]
[Result "1-0"]
[ECO "B24"]
[WhiteElo "2599"]
[BlackElo "2370"]
[Annotator "ChessBase"]
[PlyCount "71"]
[EventDate "2019.10.18"]
[EventType "swiss"]
[EventCountry "RUS"]
[SourceTitle "playchess.com"]
[Source "ChessBase"]
[SourceQuality "1"]
[TimeControl "900+10"]

1. e4 {[%emt 0:00:00]} c5 {[%emt 0:00:00]} 2. Nc3 {[%emt 0:00:00]} Nc6 {[%emt 0:00:22]} 3. Bb5 {[%emt 0:00:00]} d6 {[%emt 0:02:45]} 4. Bxc6+ {[%emt 0:00:00]} bxc6 {[%emt 0:00:01]} 5. d3 {[%emt 0:00:01]} Nf6 {[%emt 0:01:08]} 6. f4 {[%emt 0:00:03]} g6 {[%emt 0:00:21]} 7. Nf3 {[%emt 0:00:02]} Bg7 {[%emt 0:00:01]} 8. O-O {[%emt 0:00:02]} O-O {[%emt 0:00:02]} 9. Qe1 {[%emt 0:00:02]} Bg4 {[%emt 0:04:29]} 10. Nd2 {[%emt 0:00:02]} Bd7 {[%emt 0:00:53]} 11. h3 {[%emt 0:00:03]} Ne8 {[%emt 0:00:47]} 12. Nf3 {[%emt 0:00:06]} Nc7 {[%emt 0:00:05]} 13. f5 {[%emt 0:00:19]} Nb5 {[%emt 0:00:15]} 14. Nxb5 {[%emt 0:00:39]} cxb5 {[%emt 0:00:01]} 15. Qh4 {[%emt 0:00:04]} e6 {[%emt 0:00:38]} 16. Ng5 {[%emt 0:00:41]} h5 {[%emt 0:01:16]} 17. g4 {[%emt 0:00:26]} exf5 {[%emt 0:00:03]} 18. gxh5 {[%emt 0:00:14]} Qf6 {[%emt 0:00:37]} 19. c3 {[%emt 0:03:28]} Rfe8 {[%emt 0:01:30]} 20. h6 {[%emt 0:01:42]} Bf8 {[%emt 0:00:47]} 21. Bf4 {[%emt 0:00:02]} b4 {[%emt 0:00:20]} 22. Rae1 {[%emt 0:00:11]} bxc3 {[%emt 0:00:42]} 23. bxc3 {[%emt 0:00:06]} Rad8 {[%emt 0:00:34]} 24. e5 {[%emt 0:02:26]} dxe5 {[%emt 0:00:01]} 25. Rxe5 {[%emt 0:00:03]} Be6 {[%emt 0:01:11]} 26. Rfe1 {[%emt 0:00:39]} Be7 {[%emt 0:00:17]} 27. h7+ {[%emt 0:00:30]} Kh8 {[%emt 0:00:05]} 28. Rxe6 {[%emt 0:00:11]} fxe6 {[%emt 0:00:02]} 29. Be5 {[%emt 0:00:06]} Rf8 {[%emt 0:00:06]} 30. Bxf6+ {[%emt 0:00:26]} Bxf6 {[%emt 0:00:01]} 31. Rxe6 {[%emt 0:00:02]} Rxd3 {[%emt 0:00:32]} 32. Rxf6 {[%emt 0:00:24]} Rxf6 {[%emt 0:00:02]} 33. Qe1 {[%emt 0:00:02]} Rd8 {[%emt 0:00:21]} 34. Qe7 {[%emt 0:00:11]} Rdf8 {[%emt 0:00:01]} 35. Ne6 {[%emt 0:00:15]} R6f7 {[%emt 0:00:17]} 36. Qxf8+ {[%emt 0:00:04]} 1-0

[Event "RUS-chT Men Rapid 2019"]
[Site "Sochi"]
[Date "2019.10.18"]
[Round "1.15"]
[White "Cherednichenko, Dmitrij"]
[Black "Potapov, Pavel"]
[Result "1/2-1/2"]
[ECO "A84"]
[WhiteElo "2275"]
[BlackElo "2489"]
[Annotator "ChessBase"]
[PlyCount "85"]
[EventDate "2019.10.18"]
[EventType "swiss"]
[EventCountry "RUS"]
[SourceTitle "playchess.com"]
[Source "ChessBase"]
[SourceQuality "1"]
[TimeControl "900+10"]

1. d4 {[%emt 0:00:00]} f5 {[%emt 0:00:00]} 2. c4 {[%emt 0:00:07]} Nf6 {[%emt 0:00:00]} 3. Nf3 {[%emt 0:00:03]} g6 {[%emt 0:00:00]} 4. g3 {[%emt 0:00:02]} Bg7 {[%emt 0:00:00]} 5. b4 {[%emt 0:00:02]} c6 {[%emt 0:00:00]} 6. Bb2 {[%emt 0:00:02]} d5 {[%emt 0:00:03]} 7. Nbd2 {[%emt 0:00:01]} Ne4 {[%emt 0:00:05]} 8. Bg2 {[%emt 0:00:05]} a5 {[%emt 0:00:45]} 9. cxd5 {[%emt 0:01:34]} cxd5 {[%emt 0:00:05]} 10. b5 {[%emt 0:00:02]} a4 {[%emt 0:01:05]} 11. Rb1 {[%emt 0:00:40]} Nd7 {[%emt 0:00:31]} 12. O-O {[%emt 0:00:08]} O-O {[%emt 0:00:20]} 13. Ne5 {[%emt 0:01:47]} Nb6 {[%emt 0:00:33]} 14. Ndf3 {[%emt 0:02:02]} Be6 {[%emt 0:01:17]} 15. Rc1 {[%emt 0:00:39]} Qd6 {[%emt 0:00:46]} 16. a3 {[%emt 0:00:57]} Rfc8 {[%emt 0:00:54]} 17. Ne1 {[%emt 0:03:45]} Nc4 {[%emt 0:01:04]} 18. Nxc4 {[%emt 0:00:20]} dxc4 {[%emt 0:00:08]} 19. Bxe4 {[%emt 0:01:36]} fxe4 {[%emt 0:00:02]} 20. Qd2 {[%emt 0:00:27]} Bd7 {[%emt 0:02:23]} 21. Nc2 {[%emt 0:00:40]} Bxb5 {[%emt 0:00:19]} 22. Ne3 {[%emt 0:00:18]} Rc7 {[%emt 0:00:58]} 23. d5 {[%emt 0:00:12]} Bf6 {[%emt 0:01:40]} 24. Bxf6 {[%emt 0:00:48]} exf6 {[%emt 0:00:04]} 25. Qd4 {[%emt 0:00:13]} Rac8 {[%emt 0:00:30]} 26. Qxe4 {[%emt 0:01:20]} c3 {[%emt 0:00:11]} 27. Rfe1 {[%emt 0:00:27]} Kg7 {[%emt 0:00:39]} 28. Nc2 {[%emt 0:00:17]} Bc4 {[%emt 0:00:32]} 29. Nb4 {[%emt 0:00:17]} Bb3 {[%emt 0:00:09]} 30. Qd3 {[%emt 0:00:21]} c2 {[%emt 0:00:30]} 31. e4 {[%emt 0:00:02]} Rc3 {[%emt 0:00:10]} 32. Qd4 {[%emt 0:00:07]} Qc5 {[%emt 0:00:22]} 33. Qd2 {[%emt 0:00:01]} Qd6 {[%emt 0:00:47]} 34. f4 {[%emt 0:00:08]} Qc5+ {[%emt 0:00:23]} 35. Kg2 {[%emt 0:00:01]} Rd8 {[%emt 0:00:03]} 36. Qf2 {[%emt 0:00:43]} f5 {[%emt 0:00:25]} 37. Qxc5 {[%emt 0:00:11]} Rxc5 {[%emt 0:00:03]} 38. exf5 {[%emt 0:00:14]} gxf5 {[%emt 0:00:20]} 39. Kf2 {[%emt 0:00:23]} b5 {[%emt 0:00:35]} 40. Re5 {[%emt 0:00:11]} Kf6 {[%emt 0:00:20]} 41. Re6+ {[%emt 0:00:01]} Kg7 {[%emt 0:01:08]} 42. Re5 {[%emt 0:00:01]} Kf6 {[%emt 0:00:43]} 43. Re6+ {[%emt 0:00:02] Ke5} 1/2-1/2

[Event "RUS-chT Men Rapid 2019"]
[Site "Sochi"]
[Date "2019.10.18"]
[Round "1.16"]
[White "Belyakov, Bogdan"]
[Black "Navrodskiy, Boris"]
[Result "1-0"]
[ECO "B13"]
[WhiteElo "2495"]
[BlackElo "2197"]
[Annotator "ChessBase"]
[PlyCount "59"]
[EventDate "2019.10.18"]
[EventType "swiss"]
[EventCountry "RUS"]
[SourceTitle "playchess.com"]
[Source "ChessBase"]
[SourceQuality "1"]
[TimeControl "900+10"]

1. e4 {[%emt 0:00:00]} c6 {[%emt 0:00:00]} 2. d4 {[%emt 0:00:00]} d5 {[%emt 0:00:00]} 3. exd5 {[%emt 0:00:00]} cxd5 {[%emt 0:00:00]} 4. c4 {[%emt 0:00:02]} Nf6 {[%emt 0:00:00]} 5. Nc3 {[%emt 0:00:02]} Nc6 {[%emt 0:00:00]} 6. Nf3 {[%emt 0:00:13]} Bg4 {[%emt 0:00:03]} 7. cxd5 {[%emt 0:00:21]} Nxd5 {[%emt 0:00:02]} 8. Qb3 {[%emt 0:00:04]} Bxf3 {[%emt 0:00:17]} 9. gxf3 {[%emt 0:00:02]} e6 {[%emt 0:00:02]} 10. Qxb7 {[%emt 0:00:32]} Nxd4 {[%emt 0:00:03]} 11. Bb5+ {[%emt 0:00:10]} Nxb5 {[%emt 0:00:02]} 12. Qc6+ {[%emt 0:00:04]} Ke7 {[%emt 0:00:02]} 13. Qxb5 {[%emt 0:00:04]} Qd7 {[%emt 0:00:03]} 14. Nxd5+ {[%emt 0:00:19]} exd5 {[%emt 0:00:19]} 15. Qe2+ {[%emt 0:01:38]} Qe6 {[%emt 0:01:11]} 16. Be3 {[%emt 0:00:06]} f6 {[%emt 0:02:16]} 17. O-O-O {[%emt 0:00:08]} Kf7 {[%emt 0:00:16]} 18. Kb1 {[%emt 0:01:55]} Qf5+ {[%emt 0:03:56]} 19. Qd3 {[%emt 0:00:32]} Qxf3 {[%emt 0:00:25]} 20. Qxd5+ {[%emt 0:00:08]} Qxd5 {[%emt 0:00:03]} 21. Rxd5 {[%emt 0:00:02]} Ke6 {[%emt 0:00:16]} 22. Rhd1 {[%emt 0:00:45]} Be7 {[%emt 0:00:54]} 23. R5d4 {[%emt 0:01:30]} f5 {[%emt 0:02:32]} 24. Re1 {[%emt 0:00:11]} Bf6 {[%emt 0:03:59]} 25. Bh6+ {[%emt 0:00:45]} Kf7 {[%emt 0:00:23]} 26. Rd7+ {[%emt 0:00:02]} Kg6 {[%emt 0:00:20]} 27. Bxg7 {[%emt 0:00:05]} Bxg7 {[%emt 0:00:35]} 28. Rg1+ {[%emt 0:00:02]} Kh6 {[%emt 0:00:06]} 29. Rdxg7 {[%emt 0:00:17]} Rhe8 {[%emt 0:00:25]} 30. R7g3 {[%emt 0:00:04]} 1-0